[Event "Biel DQA Blitzn"]
[Site "Biel/Bienne, Switzerland"]
[Date "2022.07.17"]
[Round "7.4"]
[White "Keymer, Cecilia"]
[Black "Sumarriva Paulin, Laura"]
[Result "0-1"]
[TimeControl "3 min + 2 sec"]
[WhiteElo "1652"]
[BlackElo "1886"]

1. d4 {[%clk 00:03:02]} {[%emt 00:00:01]} d5 {[%clk 00:03:03]} {[%emt
00:00:01]} 2. c4 {[%clk 00:03:04]} dxc4 {[%clk 00:03:04]} {[%emt 00:00:02]} 3.
Nf3 {[%clk 00:03:04]} {[%emt 00:00:02]} Nf6 {[%clk 00:03:04]} {[%emt 00:00:01]}
4. e3 {[%clk 00:03:04]} {[%emt 00:00:02]} e6 {[%clk 00:03:05]} {[%emt
00:00:01]} 5. Bxc4 {[%clk 00:03:05]} c5 {[%clk 00:03:06]} {[%emt 00:00:01]} 6.
O-O {[%clk 00:03:05]} {[%emt 00:00:02]} Nc6 {[%clk 00:03:07]} {[%emt 00:00:01]}
7. a3 {[%clk 00:03:05]} {[%emt 00:00:02]} a6 {[%clk 00:03:05]} {[%emt
00:00:04]} 8. dxc5 {[%clk 00:03:04]} {[%emt 00:00:03]} Bxc5 {[%clk 00:03:05]}
{[%emt 00:00:02]} 9. Qxd8+ {[%clk 00:02:57]} {[%emt 00:00:08]} Kxd8 {[%clk
00:03:05]} {[%emt 00:00:02]} 10. Nc3 {[%clk 00:02:56]} {[%emt 00:00:03]} b5
{[%clk 00:03:05]} {[%emt 00:00:03]} 11. Be2 {[%clk 00:02:53]} {[%emt 00:00:05]}
Ke7 {[%clk 00:03:04]} {[%emt 00:00:03]} 12. b4 {[%clk 00:02:53]} {[%emt
00:00:02]} Bb6 {[%clk 00:02:57]} {[%emt 00:00:09]} 13. Bb2 {[%clk 00:02:48]}
{[%emt 00:00:06]} Bb7 {[%clk 00:02:58]} {[%emt 00:00:01]} 14. Rac1 {[%clk
00:02:41]} {[%emt 00:00:09]} Rhd8 {[%clk 00:02:58]} {[%emt 00:00:03]} 15. Rfd1
{[%clk 00:02:42]} {[%emt 00:00:02]} Rac8 {[%clk 00:02:57]} {[%emt 00:00:03]} 16.
Bd3 {[%clk 00:02:12]} {[%emt 00:00:32]} h6 {[%clk 00:02:56]} {[%emt 00:00:03]}
17. Ne2 {[%clk 00:02:06]} {[%emt 00:00:08]} Rd7 {[%clk 00:02:36]} {[%emt
00:00:22]} 18. Bc2 {[%clk 00:01:57]} {[%emt 00:00:11]} Rcd8 {[%clk 00:02:35]}
{[%emt 00:00:03]} 19. Ned4 {[%clk 00:01:46]} {[%emt 00:00:13]} Nxd4 {[%clk
00:02:27]} {[%emt 00:00:10]} 20. Nxd4 {[%clk 00:01:46]} {[%emt 00:00:01]} Ne8
{[%clk 00:02:13]} {[%emt 00:00:16]} 21. Bb3 {[%clk 00:01:35]} {[%emt 00:00:13]}
Bd5 {[%clk 00:02:06]} {[%emt 00:00:08]} 22. Bxd5 {[%clk 00:01:30]} {[%emt
00:00:07]} Bxd4 {[%clk 00:02:05]} {[%emt 00:00:03]} 23. Bxd4 {[%clk 00:01:25]}
{[%emt 00:00:07]} Rxd5 {[%clk 00:02:05]} {[%emt 00:00:02]} 24. Bc5+ {[%clk
00:01:23]} {[%emt 00:00:04]} Kf6 {[%clk 00:02:01]} {[%emt 00:00:06]} 25. Rxd5
{[%clk 00:01:06]} {[%emt 00:00:19]} Rxd5 {[%clk 00:02:01]} {[%emt 00:00:02]} 26.
Bd4+ {[%clk 00:00:53]} {[%emt 00:00:14]} e5 {[%clk 00:01:40]} {[%emt 00:00:24]}
27. Bb2 {[%clk 00:00:49]} {[%emt 00:00:06]} Ke7 {[%clk 00:01:36]} {[%emt
00:00:05]} 28. g3 {[%clk 00:00:48]} {[%emt 00:00:04]} f6 {[%clk 00:01:36]}
{[%emt 00:00:02]} 29. Rc6 {[%clk 00:00:42]} {[%emt 00:00:09]} Rd6 {[%clk
00:01:36]} {[%emt 00:00:02]} 30. Rxd6 {[%clk 00:00:35]} {[%emt 00:00:09]} Nxd6
{[%clk 00:01:37]} {[%emt 00:00:01]} 31. Kf1 {[%clk 00:00:34]} {[%emt 00:00:01]}
Nc4 {[%clk 00:01:38]} {[%emt 00:00:02]} 32. Bc1 {[%clk 00:00:35]} {[%emt
00:00:01]} Kd6 {[%clk 00:01:39]} {[%emt 00:00:01]} 33. Ke2 {[%clk 00:00:36]}
Kd5 {[%clk 00:01:33]} {[%emt 00:00:08]} 34. Kd3 {[%clk 00:00:36]} {[%emt
00:00:02]} e4+ {[%clk 00:01:32]} {[%emt 00:00:03]} 35. Kc3 {[%clk 00:00:33]}
{[%emt 00:00:05]} f5 {[%clk 00:01:32]} {[%emt 00:00:02]} 36. Kb3 {[%clk
00:00:28]} {[%emt 00:00:06]} Ne5 {[%clk 00:01:25]} {[%emt 00:00:09]} 37. a4
{[%clk 00:00:27]} {[%emt 00:00:04]} Nd3 {[%clk 00:01:25]} {[%emt 00:00:02]} 38.
axb5 {[%clk 00:00:15]} {[%emt 00:00:14]} Nxc1+ {[%clk 00:01:22]} {[%emt
00:00:05]} 39. Kb2 {[%clk 00:00:11]} {[%emt 00:00:05]} Nd3+ {[%clk 00:01:22]}
{[%emt 00:00:02]} 40. Kc3 {[%clk 00:00:08]} {[%emt 00:00:04]} axb5 {[%clk
00:01:22]} {[%emt 00:00:01]} 41. Kb3 {[%clk 00:00:09]} {[%emt 00:00:02]} Nxf2
{[%clk 00:01:22]} {[%emt 00:00:02]} 42. Kc3 {[%clk 00:00:10]} {[%emt 00:00:01]}
Nd3 {[%clk 00:01:22]} {[%emt 00:00:02]} 43. Kb3 {[%clk 00:00:10]} {[%emt
00:00:02]} Ne5 {[%clk 00:01:22]} {[%emt 00:00:03]} 44. Kc3 {[%clk 00:00:10]}
{[%emt 00:00:02]} Ng4 {[%clk 00:01:22]} {[%emt 00:00:01]} 45. Kd2 {[%clk
00:00:09]} {[%emt 00:00:03]} Kc4 {[%clk 00:01:23]} {[%emt 00:00:02]} 46. h3
{[%clk 00:00:09]} {[%emt 00:00:02]} Ne5 {[%clk 00:01:24]} {[%emt 00:00:01]} 47.
Kc2 {[%clk 00:00:09]} {[%emt 00:00:01]} Kxb4 {[%emt 00:00:02]} 48. Kb2 Nd3+
{[%clk 00:01:24]} {[%emt 00:00:02]} 49. Kc2 {[%clk 00:00:11]} {[%emt 00:00:01]}
Kc4 {[%clk 00:01:25]} {[%emt 00:00:01]} 50. Kd2 {[%clk 00:00:13]} b4 {[%clk
00:01:25]} 51. g4 {[%clk 00:00:14]} {[%emt 00:00:01]} fxg4 {[%clk 00:01:24]}
{[%emt 00:00:03]} 52. hxg4 {[%clk 00:00:15]} b3 {[%clk 00:01:25]} {[%emt
00:00:02]} 53. Kd1 {[%clk 00:00:16]} Kc3 {[%clk 00:01:23]} {[%emt 00:00:05]} 54.
g5 {[%clk 00:00:15]} {[%emt 00:00:04]} b2 {[%clk 00:01:23]} {[%emt 00:00:02]}
55. g6 {[%clk 00:00:14]} {[%emt 00:00:02]} b1=Q+ {[%emt 00:00:03]} 0-1

[ePGN "0.1;DGT LiveChess/2.2.5"]

[Event "Biel DQA Blitzn"]
[Site "Biel/Bienne, Switzerland"]
[Date "2022.07.17"]
[Round "8.1"]
[White "Cornileau, Juliette"]
[Black "Zhuang, Yongzhe"]
[Result "1/2-1/2"]
[TimeControl "3 min + 2 sec"]
[WhiteElo "1653"]
[BlackElo "1681"]

1. d4 {[%clk 00:03:02]} {[%emt 00:00:02]} d5 {[%clk 00:03:03]} {[%emt
00:00:01]} 2. c4 {[%clk 00:03:03]} {[%emt 00:00:01]} dxc4 {[%clk 00:03:03]}
{[%emt 00:00:02]} 3. e4 {[%clk 00:03:03]} {[%emt 00:00:02]} b5 {[%clk
00:03:01]} {[%emt 00:00:03]} 4. a4 {[%clk 00:02:57]} {[%emt 00:00:08]} c6
{[%clk 00:03:02]} {[%emt 00:00:01]} 5. b3 {[%clk 00:02:17]} {[%emt 00:00:43]}
e5 {[%clk 00:02:51]} {[%emt 00:00:12]} 6. d5 {[%clk 00:02:02]} {[%emt
00:00:18]} cxd5 {[%clk 00:02:23]} {[%emt 00:00:30]} 7. exd5 {[%clk 00:02:00]}
{[%emt 00:00:04]} Nf6 {[%clk 00:02:24]} {[%emt 00:00:01]} 8. bxc4 {[%clk
00:01:48]} {[%emt 00:00:14]} bxc4 {[%clk 00:01:55]} {[%emt 00:00:30]} 9. Bxc4
{[%clk 00:01:49]} {[%emt 00:00:01]} Bb4+ {[%clk 00:01:56]} 10. Bd2 {[%clk
00:01:43]} {[%emt 00:00:08]} Bxd2+ {[%clk 00:01:18]} {[%emt 00:00:40]} 11. Qxd2
{[%clk 00:01:41]} {[%emt 00:00:04]} Bb7 {[%clk 00:01:11]} {[%emt 00:00:09]} 12.
Nc3 {[%clk 00:01:41]} {[%emt 00:00:02]} O-O {[%clk 00:01:10]} {[%emt 00:00:03]}
13. Nge2 {[%clk 00:01:13]} {[%emt 00:00:29]} Nbd7 {[%clk 00:00:58]} {[%emt
00:00:14]} 14. O-O {[%clk 00:01:11]} {[%emt 00:00:05]} Nb6 {[%clk 00:00:58]}
{[%emt 00:00:02]} 15. Ba2 {[%clk 00:00:39]} {[%emt 00:00:34]} Nbxd5 {[%clk
00:00:57]} {[%emt 00:00:03]} 16. Nxd5 {[%clk 00:00:19]} {[%emt 00:00:23]} Nxd5
{[%clk 00:00:57]} {[%emt 00:00:02]} 17. Rab1 {[%clk 00:00:18]} {[%emt
00:00:02]} Bc6 {[%clk 00:00:42]} {[%emt 00:00:17]} 18. Rfc1 {[%clk 00:00:16]}
{[%emt 00:00:04]} Ne7 {[%clk 00:00:39]} {[%emt 00:00:05]} 19. Qg5 {[%clk
00:00:11]} {[%emt 00:00:07]} Bxa4 {[%clk 00:00:21]} {[%emt 00:00:21]} 20. Qxe5
{[%clk 00:00:07]} {[%emt 00:00:06]} Ng6 {[%clk 00:00:21]} {[%emt 00:00:02]} 21.
Qe4 {[%clk 00:00:05]} {[%emt 00:00:05]} Bd7 {[%clk 00:00:19]} {[%emt 00:00:03]}
22. Qf3 {[%clk 00:00:05]} {[%emt 00:00:03]} Qg5 {[%clk 00:00:18]} {[%emt
00:00:03]} 23. Qg3 {[%clk 00:00:05]} {[%emt 00:00:02]} Qa5 {[%clk 00:00:17]}
{[%emt 00:00:02]} 24. Bc4 {[%clk 00:00:05]} {[%emt 00:00:03]} Bf5 {[%clk
00:00:18]} {[%emt 00:00:01]} 25. Ra1 {[%clk 00:00:06]} {[%emt 00:00:02]} Qd8
{[%clk 00:00:17]} {[%emt 00:00:02]} 26. Rd1 {[%clk 00:00:07]} Qf6 {[%clk
00:00:17]} {[%emt 00:00:03]} 27. Bd5 {[%clk 00:00:07]} {[%emt 00:00:02]} Rad8
{[%clk 00:00:17]} {[%emt 00:00:01]} 28. Bf3 {[%clk 00:00:07]} {[%emt 00:00:02]}
Rxd1+ {[%clk 00:00:17]} {[%emt 00:00:03]} 29. Rxd1 {[%clk 00:00:08]} a5 {[%clk
00:00:17]} 30. Nf4 {[%clk 00:00:07]} {[%emt 00:00:04]} Nxf4 {[%clk 00:00:15]}
{[%emt 00:00:04]} 31. Qxf4 {[%clk 00:00:08]} {[%emt 00:00:01]} h6 {[%clk
00:00:15]} {[%emt 00:00:02]} 32. g4 {[%clk 00:00:08]} {[%emt 00:00:01]} Bc2
{[%clk 00:00:14]} {[%emt 00:00:03]} 33. Qxf6 {[%clk 00:00:06]} {[%emt
00:00:04]} gxf6 {[%clk 00:00:15]} {[%emt 00:00:01]} 34. Rd2 {[%clk 00:00:07]}
{[%emt 00:00:02]} Bb3 {[%clk 00:00:14]} {[%emt 00:00:02]} 35. Bd5 {[%clk
00:00:04]} {[%emt 00:00:05]} a4 {[%clk 00:00:14]} {[%emt 00:00:02]} 36. Bxb3
{[%clk 00:00:04]} {[%emt 00:00:03]} axb3 {[%clk 00:00:15]} 37. Rb2 {[%clk
00:00:06]} Rb8 {[%clk 00:00:15]} {[%emt 00:00:01]} 38. Kg2 {[%clk 00:00:07]}
Kg7 {[%clk 00:00:16]} 39. Kf3 {[%clk 00:00:09]} Kg6 {[%clk 00:00:16]} {[%emt
00:00:02]} 40. Kf4 {[%clk 00:00:09]} {[%emt 00:00:03]} Rb4+ {[%clk 00:00:16]}
{[%emt 00:00:02]} 41. Kf3 {[%clk 00:00:09]} {[%emt 00:00:01]} h5 {[%clk
00:00:14]} {[%emt 00:00:03]} 42. h3 {[%clk 00:00:10]} {[%emt 00:00:02]} h4
{[%clk 00:00:14]} {[%emt 00:00:02]} 43. Ke3 {[%clk 00:00:10]} {[%emt 00:00:03]}
Kg5 {[%clk 00:00:15]} {[%emt 00:00:01]} 44. f4+ {[%clk 00:00:10]} {[%emt
00:00:02]} Rxf4 {[%clk 00:00:11]} {[%emt 00:00:05]} 45. Rxb3 {[%clk 00:00:12]}
Rf1 {[%clk 00:00:10]} {[%emt 00:00:03]} 46. Rb5+ {[%clk 00:00:13]} Kg6 {[%clk
00:00:11]} {[%emt 00:00:01]} 47. Rh5 {[%clk 00:00:12]} {[%emt 00:00:03]} Rg1
{[%clk 00:00:10]} {[%emt 00:00:02]} 48. Rxh4 {[%clk 00:00:11]} {[%emt
00:00:03]} Rg3+ {[%clk 00:00:10]} {[%emt 00:00:01]} 49. Kf4 {[%clk 00:00:12]}
{[%emt 00:00:01]} Ra3 {[%clk 00:00:10]} {[%emt 00:00:02]} 50. Rh8 {[%clk
00:00:10]} {[%emt 00:00:05]} Kg7 {[%clk 00:00:10]} {[%emt 00:00:02]} 51. Rh5
{[%clk 00:00:10]} {[%emt 00:00:03]} Kg6 {[%clk 00:00:10]} {[%emt 00:00:01]} 52.
Rh8 {[%clk 00:00:07]} {[%emt 00:00:05]} Kg7 {[%clk 00:00:11]} {[%emt 00:00:01]}
53. Rh5 {[%clk 00:00:05]} {[%emt 00:00:03]} Kg6 {[%clk 00:00:12]} 54. Rh8
{[%clk 00:00:03]} {[%emt 00:00:05]} Kg7 {[%clk 00:00:13]} 1/2-1/2

[Event "Biel DQA Blitzn"]
[Site "Biel/Bienne, Switzerland"]
[Date "2022.07.17"]
[Round "8.2"]
[White "Tamrazyan, Gohar"]
[Black "Avilova, Yulia"]
[Result "0-1"]
[TimeControl "3 min + 2 sec"]
[WhiteElo "1733"]
[BlackElo "1597"]

1. d4 {[%clk 00:03:03]} {[%emt 00:08:42]} d5 {[%clk 00:03:03]} {[%emt
00:00:02]} 2. Nc3 {[%clk 00:03:04]} e6 {[%clk 00:03:04]} {[%emt 00:00:01]} 3.
Bf4 {[%clk 00:03:05]} {[%emt 00:00:01]} c5 {[%clk 00:03:04]} {[%emt 00:00:03]}
4. e4 {[%clk 00:03:04]} {[%emt 00:00:03]} cxd4 {[%clk 00:02:53]} {[%emt
00:00:13]} 5. Qxd4 {[%clk 00:02:58]} {[%emt 00:00:07]} Nc6 {[%clk 00:02:54]}
{[%emt 00:00:02]} 6. Bb5 {[%clk 00:02:59]} {[%emt 00:00:01]} Bd7 {[%clk
00:02:49]} {[%emt 00:00:07]} 7. Bxc6 {[%clk 00:02:56]} {[%emt 00:00:05]} Bxc6
{[%clk 00:02:50]} 8. exd5 {[%clk 00:02:19]} {[%emt 00:00:40]} exd5 {[%clk
00:02:50]} {[%emt 00:00:01]} 9. O-O-O {[%clk 00:02:12]} {[%emt 00:00:08]} Nf6
{[%clk 00:02:51]} {[%emt 00:00:02]} 10. Nf3 {[%clk 00:01:54]} {[%emt 00:00:20]}
Be7 {[%clk 00:02:51]} {[%emt 00:00:02]} 11. Rhe1 {[%clk 00:01:39]} {[%emt
00:00:17]} O-O {[%clk 00:02:50]} {[%emt 00:00:03]} 12. Bg5 {[%clk 00:01:30]}
{[%emt 00:00:11]} h6 {[%clk 00:02:45]} {[%emt 00:00:07]} 13. Bh4 {[%clk
00:01:21]} {[%emt 00:00:12]} b6 {[%clk 00:02:35]} {[%emt 00:00:13]} 14. Ne5
{[%clk 00:01:13]} {[%emt 00:00:10]} Bb7 {[%clk 00:02:30]} {[%emt 00:00:06]} 15.
g4 {[%clk 00:01:07]} {[%emt 00:00:07]} Bc5 {[%clk 00:02:31]} {[%emt 00:00:02]}
16. Qf4 {[%clk 00:01:07]} {[%emt 00:00:01]} Qd6 {[%clk 00:02:17]} {[%emt
00:00:16]} 17. Bxf6 {[%clk 00:00:50]} {[%emt 00:00:19]} Qxf6 {[%clk 00:02:17]}
{[%emt 00:00:02]} 18. Qxf6 {[%clk 00:00:47]} {[%emt 00:00:06]} gxf6 {[%clk
00:02:18]} 19. Nd7 {[%clk 00:00:47]} {[%emt 00:00:02]} Rfd8 {[%clk 00:02:07]}
{[%emt 00:00:12]} 20. Nxf6+ {[%clk 00:00:46]} {[%emt 00:00:03]} Kg7 {[%clk
00:02:08]} {[%emt 00:00:01]} 21. Nfxd5 {[%clk 00:00:43]} {[%emt 00:00:05]} Bxf2
{[%clk 00:02:03]} {[%emt 00:00:07]} 22. Rf1 {[%clk 00:00:37]} {[%emt 00:00:08]}
Bh4 {[%clk 00:02:00]} {[%emt 00:00:05]} 23. Nc7 {[%clk 00:00:29]} {[%emt
00:00:10]} Bg5+ {[%clk 00:01:57]} {[%emt 00:00:06]} 24. Kb1 {[%clk 00:00:29]}
{[%emt 00:00:02]} Rac8 {[%clk 00:01:54]} {[%emt 00:00:05]} 25. Rxd8 {[%clk
00:00:27]} {[%emt 00:00:04]} Bxd8 {[%clk 00:01:51]} {[%emt 00:00:05]} 26. N7d5
{[%clk 00:00:24]} {[%emt 00:00:04]} Bg5 {[%clk 00:01:50]} {[%emt 00:00:04]} 27.
a3 {[%clk 00:00:25]} {[%emt 00:00:01]} Rd8 {[%clk 00:01:51]} 28. Nf4 {[%clk
00:00:22]} {[%emt 00:00:05]} Ba6 {[%clk 00:01:48]} {[%emt 00:00:05]} 29. Rf3
{[%clk 00:00:19]} {[%emt 00:00:04]} Rd4 {[%clk 00:01:45]} {[%emt 00:00:05]} 30.
Nce2 {[%clk 00:00:14]} {[%emt 00:00:07]} Re4 {[%clk 00:01:41]} {[%emt
00:00:05]} 31. Nh5+ {[%clk 00:00:13]} {[%emt 00:00:04]} Kf8 {[%clk 00:01:36]}
{[%emt 00:00:07]} 32. Neg3 {[%clk 00:00:12]} {[%emt 00:00:03]} Re1+ {[%clk
00:01:35]} {[%emt 00:00:02]} 33. Ka2 {[%clk 00:00:13]} {[%emt 00:00:01]} Bb7
{[%clk 00:01:32]} {[%emt 00:00:05]} 34. Rd3 {[%clk 00:00:11]} {[%emt 00:00:04]}
Bc8 {[%clk 00:01:24]} {[%emt 00:00:11]} 35. h3 {[%clk 00:00:12]} Be6+ {[%clk
00:01:24]} {[%emt 00:00:02]} 36. b3 {[%clk 00:00:13]} Rg1 {[%clk 00:01:22]}
{[%emt 00:00:03]} 37. a4 {[%clk 00:00:13]} {[%emt 00:00:03]} Rg2 {[%clk
00:01:23]} {[%emt 00:00:01]} 38. Kb2 {[%clk 00:00:12]} {[%emt 00:00:03]} Bh4
{[%clk 00:01:22]} {[%emt 00:00:03]} 39. Kc3 {[%clk 00:00:11]} {[%emt 00:00:03]}
Be7 {[%clk 00:01:09]} {[%emt 00:00:15]} 40. Ne4 {[%clk 00:00:12]} {[%emt
00:00:01]} Kg8 {[%clk 00:00:55]} {[%emt 00:00:16]} 41. Nhf6+ {[%clk 00:00:13]}
{[%emt 00:00:01]} Kh8 {[%clk 00:00:52]} {[%emt 00:00:04]} 42. Nd5 {[%clk
00:00:13]} {[%emt 00:00:03]} Bh4 {[%clk 00:00:47]} {[%emt 00:00:07]} 43. Kb2
{[%clk 00:00:14]} {[%emt 00:00:02]} f5 {[%clk 00:00:46]} {[%emt 00:00:02]} 44.
gxf5 {[%clk 00:00:14]} {[%emt 00:00:02]} Bxf5 {[%clk 00:00:47]} {[%emt
00:00:01]} 45. Re3 {[%clk 00:00:11]} {[%emt 00:00:05]} Bg5 {[%clk 00:00:41]}
{[%emt 00:00:08]} 46. Nxg5 {[%clk 00:00:11]} {[%emt 00:00:03]} hxg5 {[%clk
00:00:42]} 47. Re5 {[%clk 00:00:11]} {[%emt 00:00:02]} Bxc2 {[%clk 00:00:40]}
{[%emt 00:00:04]} 48. Ka3 {[%clk 00:00:11]} {[%emt 00:00:02]} Bd3 {[%clk
00:00:36]} {[%emt 00:00:05]} 49. Re7 {[%clk 00:00:11]} {[%emt 00:00:02]} Rg3
{[%clk 00:00:34]} {[%emt 00:00:05]} 50. Nf6 {[%clk 00:00:12]} {[%emt 00:00:02]}
Rxh3 {[%clk 00:00:29]} {[%emt 00:00:06]} 51. Rxa7 {[%clk 00:00:12]} {[%emt
00:00:02]} Bf5 {[%clk 00:00:25]} {[%emt 00:00:05]} 52. Rb7 {[%clk 00:00:11]}
{[%emt 00:00:03]} g4 {[%clk 00:00:21]} {[%emt 00:00:06]} 53. Rxb6 {[%clk
00:00:11]} {[%emt 00:00:02]} g3 {[%clk 00:00:21]} {[%emt 00:00:01]} 54. Nd5
{[%clk 00:00:09]} {[%emt 00:00:04]} g2 {[%clk 00:00:20]} {[%emt 00:00:03]} 55.
Rb8+ {[%clk 00:00:07]} {[%emt 00:00:05]} Kg7 {[%clk 00:00:17]} {[%emt
00:00:05]} 56. Rb7+ {[%clk 00:00:08]} {[%emt 00:00:01]} Kh6 {[%clk 00:00:17]}
{[%emt 00:00:02]} 57. Rb6+ {[%clk 00:00:08]} {[%emt 00:00:02]} Kg5 {[%clk
00:00:14]} {[%emt 00:00:04]} 58. Rb8 {[%clk 00:00:08]} {[%emt 00:00:03]} g1=Q
{[%clk 00:00:13]} {[%emt 00:00:04]} 59. Rg8+ {[%clk 00:00:09]} Bg6 {[%clk
00:00:14]} 60. Ne7 {[%clk 00:00:04]} {[%emt 00:00:06]} Qa1+ {[%clk 00:00:14]}
{[%emt 00:00:02]} 61. Kb4 {[%clk 00:00:06]} Qe1+ {[%clk 00:00:12]} {[%emt
00:00:05]} 62. Ka5 {[%clk 00:00:07]} {[%emt 00:00:01]} Qxe7 {[%emt 00:00:02]}
0-1